bitfinex/quotes_ETHUSD_20220105
["timestamp","ask_amount","ask_price","bid_price","bid_amount"]
[1641389943826,0.00284212,3805.5,3805.3,1.31383]
[1641389944225,0.0022737,3805.4,3805.3,1.31383]
[1641389946875,0.0022737,3805.4,3805.3,0.6569]
[1641389947076,0.0022737,3805.4,3805.3,2.77948586]
[1641389948476,0.0022737,3805.4,3805.3,5.37948586]
[1641389951132,0.00312011,3805.4,3805.3,5.37948586]
[1641389951331,0.00312011,3805.4,3805.3,8.06530913]
[1641389951731,0.00312011,3805.4,3805.3,5.37948586]
[1641389952131,0.00312011,3805.4,3805.3,8.08634527]
[1641389952332,0.00312011,3805.4,3805.3,5.37948586]
[1641389955282,0.00312011,3805.4,3805.3,8.03709251]
[1641389955681,0.00312011,3805.4,3805.3,9.03709251]
[1641389956180,0.00312011,3805.4,3805.3,6.37948586]
[1641389958031,0.00312011,3805.4,3805.3,4.72258586]
[1641389958431,0.00312011,3805.4,3805.3,5.72258586]
[1641389959234,0.00312011,3805.4,3805.3,4.72258586]
[1641389959834,0.72082548,3805.4,3805.3,4.72258586]
[1641389960034,1.02082548,3805.4,3805.3,4.72258586]
[1641389962880,1.02082548,3805.4,3805.3,8.586e-05]
[1641389962881,8.20282548,3805.4,3805.3,8.586e-05]
[1641389963077,4.2657568,3805.4,3805.3,8.586e-05]
[1641389963476,1.1157568,3805.4,3805.3,8.586e-05]
[1641389964079,2.45389457,3805.4,3805.3,8.586e-05]
[1641389964534,2.75389457,3805.4,3805.3,8.586e-05]
[1641389964938,1.4157568,3805.4,3805.3,8.586e-05]
[1641389965542,1.02082548,3805.4,3805.3,8.586e-05]
[1641389966842,6.02082548,3805.4,3805.3,0.30008586]
[1641389967242,0.76644548,3805.4,3805.3,3.10008586]
[1641389967446,0.76644548,3805.4,3805.3,3.75688586]
[1641389967642,1.0,3805.7,3805.3,5.39045762]
[1641389967842,1.0,3805.7,3805.4,2.7733372]
[1641389968046,0.54289967,3805.7,3805.5,6.8]
[1641389968287,1.33813777,3806.5,3805.7,6.8]
[1641389968479,1.33813777,3806.5,3806.4,1.10986961]
[1641389968676,1.33813777,3806.5,3806.4,1.70336961]
[1641389968877,1.65289743,3806.6,3806.4,1.70336961]
[1641389969078,1.65289743,3806.6,3806.4,3.41897961]
[1641389969283,0.90550634,3807.0,3806.5,2.85]
[1641389969483,0.90550634,3807.0,3806.5,3.962]
[1641389969680,0.00568424,3806.6,3806.5,3.85]
[1641389970084,0.00568424,3806.6,3806.5,9.21318]
[1641389970281,0.00341022,3806.9,3806.6,6.3]
[1641389970486,0.00341022,3806.9,3806.6,6.6]
[1641389970687,0.00113685,3806.8,3806.7,1.0]
[1641389970885,0.00341022,3806.9,3806.7,1.0]
[1641389970886,0.00341022,3806.9,3806.8,5.5]
[1641389971083,0.00341022,3806.9,3806.8,6.5]
[1641389971383,0.90550634,3807.0,3806.8,6.608]
[1641389971583,0.90550634,3807.0,3806.9,3.6]
[1641389971785,0.90550634,3807.0,3806.9,1.0984]
[1641389972020,1.20664318,3807.0,3806.8,1.4008]
[1641389972326,1.20757962,3807.0,3806.8,1.3]
[1641389973325,1.20757962,3807.0,3806.8,1.8908779]
[1641389974327,1.20757962,3807.0,3806.8,0.8908779]
[1641389974526,1.20757962,3807.0,3806.8,1.8908779]
[1641389974926,1.20757962,3807.0,3806.8,0.8908779]
[1641389975127,1.20757962,3807.0,3806.9,1.16116844]
[1641389975528,1.20757962,3807.0,3806.9,2.16116844]
[1641389975772,1.20757962,3807.0,3806.9,1.16116844]
[1641389975978,1.20757962,3807.0,3806.9,2.16116844]
[1641389976579,1.20757962,3807.0,3806.9,1.0]
[1641389976979,1.20757962,3807.0,3806.8,1.8908779]
[1641389977180,1.20757962,3807.0,3806.8,0.8908779]
[1641389977378,1.20757962,3807.0,3806.8,1.8908779]
[1641389977979,1.20757962,3807.0,3806.8,0.8908779]
[1641389979180,1.20757962,3807.0,3806.8,3.4908779]
[1641389979382,1.20757962,3807.0,3806.9,1.0]
[1641389983574,1.20757962,3807.0,3806.8,4.2774888]
[1641389984578,1.20757962,3807.0,3806.8,3.85830417]
[1641389987030,1.20757962,3807.0,3806.8,2.6]
[1641389987633,1.20757962,3807.0,3806.9,2.97197586]
[1641389988433,1.20757962,3807.0,3806.9,4.23141231]
[1641389989232,1.20757962,3807.0,3806.9,2.97197586]
[1641389989633,1.20757962,3807.0,3806.9,4.23141231]
[1641389991282,1.20757962,3807.0,3806.9,2.97197586]
[1641389995434,1.20757962,3807.0,3806.8,2.6]
[1641389995435,6.8,3806.9,3806.8,1.57669231]
[1641389995635,7.182,3806.9,3806.8,1.57669231]
[1641389995836,6.0,3806.8,3805.9,3.37792284]
[1641389996035,0.65689,3806.4,3805.9,3.37792284]
[1641389996235,1.71558567,3806.4,3806.0,0.00454739]
[1641389996434,1.33889,3806.4,3806.0,0.00454739]
[1641389996838,1.33889,3806.4,3805.6,0.00682109]
[1641389997435,1.33889,3806.4,3805.7,0.05308386]
[1641389997636,1.33889,3806.4,3805.8,0.65689]
[1641389997835,1.33889,3806.4,3805.8,0.66257424]
[1641389998040,1.33889,3806.4,3805.9,0.00511581]
[1641389998675,1.32489264,3806.4,3805.9,0.00511581]
[1641389998875,0.5775864,3806.3,3805.9,0.00511581]
[1641389999076,0.65693,3806.2,3805.9,0.00511581]
[1641389999480,0.95693,3806.2,3805.9,0.00511581]
[1641389999682,0.95693,3806.2,3805.9,2.60511581]
[1641390003541,6.30693,3806.2,3805.7,0.05308386]
[1641390003739,0.00113684,3806.1,3805.7,0.05308386]
[1641390003938,0.65809684,3806.1,3805.7,0.71002386]
[1641390004337,0.95809684,3806.1,3805.7,0.71002386]
[1641390006690,0.95809684,3806.1,3805.7,1.97422152]
[1641390007691,0.95809684,3806.1,3805.7,0.71002386]
[1641390008797,0.95809684,3806.1,3805.8,1.26419766]
[1641390008993,5.95809684,3806.1,3805.8,1.26419766]
[1641390010029,5.95809684,3806.1,3805.8,3.86419766]
[1641390010627,5.95809684,3806.1,3805.8,2.6]
[1641390011429,5.95809684,3806.1,3805.7,1.97422152]
[1641390011630,5.95809684,3806.1,3805.8,1.26419766]
[1641390012531,5.95809684,3806.1,3805.7,1.97422152]
[1641390012832,5.95809684,3806.1,3805.7,0.71002386]
[1641390013680,5.95809684,3806.1,3805.7,1.97422152]
[1641390014281,5.90809684,3806.1,3805.7,1.97422152]
[1641390014483,5.90809684,3806.1,3805.7,0.71002386]
[1641390015289,5.90809684,3806.1,3805.7,1.97422152]
[1641390016089,5.90809684,3806.1,3805.8,4.07973383]
[1641390017433,5.90809684,3806.1,3805.9,2.81553617]
[1641390017733,5.90809684,3806.1,3805.9,4.07973383]
[1641390018329,5.90809684,3806.1,3805.9,2.81553617]
[1641390018930,5.90809684,3806.1,3805.9,4.07973383]
[1641390019733,5.90809684,3806.1,3806.0,2.81553617]
[1641390019936,5.30113684,3806.1,3806.0,2.81553617]
[1641390020975,5.60113684,3806.1,3806.0,2.81553617]
[1641390021176,5.98313684,3806.1,3806.0,2.81553617]
[1641390021387,22.38313684,3806.1,3806.0,2.81553617]
[1641390021577,22.2,3806.0,3805.3,0.56123419]
[1641390021776,0.65711,3805.7,3805.2,1.25739363]
[1641390022076,0.59899879,3805.3,3804.9,3.90886374]
[1641390022276,0.98099879,3805.3,3804.9,3.90886374]
[1641390022479,1.58099879,3805.3,3805.0,0.00511582]
[1641390022878,0.65712,3805.2,3805.0,0.00511582]
[1641390023281,0.3,3805.1,3805.0,0.00511582]
[1641390023676,3.08608672,3805.1,3805.0,0.00511582]
[1641390024282,0.3,3805.1,3805.0,0.00511582]
[1641390024731,0.3,3805.1,3804.5,1.31417]
[1641390024934,0.65711,3804.9,3804.5,1.31417]
[1641390025137,1.97134,3804.8,3804.6,0.00227369]
[1641390025333,0.3,3804.7,3804.6,0.00227369]
[1641390026235,0.3,3804.7,3804.3,0.00397896]
[1641390026435,0.65711,3804.6,3804.3,0.00397896]
[1641390031684,0.65711,3804.6,3804.2,0.00454738]
[1641390031883,0.65711,3804.6,3804.2,0.66164738]
[1641390032128,5.65711,3804.6,3804.2,0.66164738]
[1641390032323,5.65711,3804.6,3804.3,0.00397896]
[1641390032924,5.65711,3804.6,3804.3,0.59533816]
[1641390033128,5.65711,3804.6,3804.3,0.00397896]
[1641390033325,5.65711,3804.6,3804.4,0.00341054]
[1641390033525,5.65711,3804.6,3804.0,1.24819193]
[1641390033526,5.65711,3804.6,3804.3,0.00397896]
[1641390033929,5.65711,3804.6,3804.1,0.00511581]
[1641390034527,5.65711,3804.6,3804.1,0.66223581]
[1641390034731,5.65711,3804.6,3804.1,1.25362201]
[1641390034931,5.65711,3804.6,3804.2,0.66164738]
[1641390035330,5.65711,3804.6,3804.3,0.00397896]
[1641390037581,0.3,3804.5,3804.3,0.00397896]
[1641390037781,0.3,3804.5,3804.2,0.00454738]
[1641390037983,1.25723,3804.5,3804.0,0.00568423]
[1641390038181,1.25723,3804.5,3803.9,0.00625265]
[1641390038584,1.25723,3804.5,3803.7,0.0073895]
[1641390039641,3.12528596,3804.4,3803.7,0.0073895]
[1641390039841,0.69394392,3804.0,3803.5,0.00852635]
[1641390041045,0.65721,3803.9,3803.5,0.00852635]
[1641390041242,0.382,3803.8,3803.5,0.00852635]
[1641390041442,0.382,3803.8,3803.4,0.00909477]
[1641390041643,0.682,3803.8,3803.4,0.00909477]
[1641390042145,1.33934,3803.8,3803.4,0.00909477]
[1641390042343,1.33934,3803.8,3803.5,2.56456889]
[1641390042741,1.33934,3803.8,3803.6,0.00795792]
[1641390043386,2.81247892,3803.7,3803.6,0.00795792]
[1641390043590,3.19447892,3803.7,3803.6,0.00795792]
[1641390043789,0.682,3803.7,3803.6,0.00795792]
[1641390043987,0.382,3803.7,3803.6,0.00795792]
[1641390044187,0.382,3803.7,3803.4,0.00909477]
[1641390044589,0.3,3803.8,3803.4,0.00909477]
[1641390044890,0.99394392,3804.0,3803.4,0.00909477]
[1641390045090,1.29394392,3804.0,3803.4,0.00909477]
[1641390045796,1.29394392,3804.0,3803.5,1.26136079]
[1641390046198,0.69394392,3804.0,3803.6,0.00795792]
[1641390046593,0.65727,3803.8,3803.6,0.00795792]
[1641390047064,0.69394392,3804.0,3803.6,0.00795792]
[1641390047846,0.99394392,3804.0,3803.6,0.00795792]
[1641390048046,0.99394392,3804.0,3803.5,0.00852635]
[1641390048450,0.99394392,3804.0,3803.6,1.26136079]
[1641390048647,1.65119392,3804.0,3803.6,1.26136079]
[1641390048850,0.3,3803.9,3803.7,0.0073895]
[1641390049652,0.3,3803.9,3803.5,0.00852635]
[1641390050052,0.65727,3803.8,3803.5,0.00852635]
[1641390050654,0.3,3803.9,3803.5,0.00852635]
[1641390051090,0.69394392,3804.0,3803.5,0.00852635]
[1641390051488,0.69394392,3804.0,3803.6,1.26136079]
[1641390051785,1.35119392,3804.0,3803.7,0.0073895]
[1641390051983,1.65119392,3804.0,3803.7,0.0073895]
[1641390052383,6.3144,3804.6,3803.7,2.83491393]
[1641390052587,5.0,3804.6,3803.7,3.0179774]
[1641390052783,5.0,3804.6,3803.8,0.00682108]
[1641390052983,5.0,3804.6,3804.1,0.65704]
[1641390053184,5.0,3804.6,3804.2,1.26136079]
[1641390053383,0.56633539,3804.4,3804.2,1.26590817]
[1641390053584,0.56633539,3804.4,3804.3,0.00397896]
[1641390054639,0.56633539,3804.4,3804.3,1.26533975]
[1641390055239,0.56633539,3804.4,3804.3,0.00397896]
[1641390055642,0.56633539,3804.4,3804.2,0.00454738]
[1641390056040,0.86633539,3804.4,3804.2,0.00454738]
[1641390056441,0.56633539,3804.4,3804.2,0.00454738]
[1641390057042,0.56633539,3804.4,3804.2,0.66162738]
[1641390057241,0.56633539,3804.4,3804.2,0.65708]
[1641390057445,0.56633539,3804.4,3804.3,0.00397896]
[1641390057643,5.3,3804.6,3804.3,0.00397896]
[1641390057844,1.32589485,3805.8,3804.5,6.8]
[1641390058044,1.32589485,3805.9,3804.6,3.32375778]
[1641390058287,1.32589485,3805.9,3805.6,1.3134364]
[1641390058686,2.46564463,3806.2,3805.7,1.14199791]
[1641390058887,1.76790643,3806.2,3805.7,2.46017791]
[1641390059086,0.90550634,3807.0,3805.8,0.116]
[1641390059087,0.00625266,3806.1,3805.8,0.116]
[1641390059292,0.00625266,3806.1,3805.9,0.65666]
[1641390059489,0.00568424,3806.0,3805.9,0.65666]
[1641390059895,0.00568424,3806.0,3805.9,0.77186]
[1641390060093,0.00568424,3806.0,3805.9,3.5524662]
[1641390060293,0.57401909,3806.6,3806.0,2.65]
[1641390060494,0.57401909,3806.6,3806.2,1.31339]
[1641390060695,0.00284212,3806.5,3806.2,0.65669]
[1641390061096,0.00227369,3806.4,3806.2,0.65669]
[1641390061596,0.00170527,3806.3,3806.2,1.9700604]
[1641390061799,0.00170527,3806.3,3806.2,3.38759491]
[1641390062228,0.00170527,3806.3,3806.2,0.65669]
[1641390063030,0.00170527,3806.3,3806.2,3.25669]
[1641390065339,0.00170527,3806.3,3806.2,4.50956928]
[1641390065981,0.00170527,3806.3,3806.2,3.25669]
[1641390066380,0.00170527,3806.3,3806.2,2.6]
[1641390073036,0.00255546,3806.3,3806.2,2.6]
[1641390084096,0.30255546,3806.3,3806.2,2.6]
[1641390084538,0.60255546,3806.3,3806.2,2.6]
[1641390084743,10.88095682,3806.3,3806.2,2.6]
[1641390084943,7.78455546,3806.3,3806.2,2.6]
[1641390085146,8.78455546,3806.3,3806.2,2.6]
[1641390085545,8.78455546,3806.3,3806.2,0.4667]
[1641390087146,12.05306589,3806.3,3806.2,3.44033938]
[1641390092060,12.05136062,3806.3,3806.2,3.44033938]
[1641390092461,12.05136062,3806.3,3806.2,2.97363938]
[1641390092868,27.45136062,3806.3,3806.2,2.97363938]
[1641390093464,1.1938512,3806.0,3805.4,1.23251551]
[1641390093666,0.65707,3805.7,3805.4,1.23251551]
[1641390093866,3.23324907,3805.6,3805.5,0.00284212]
[1641390094064,3.53324907,3805.6,3805.5,0.00284212]
[1641390094867,0.682,3805.6,3805.5,0.00284212]
[1641390095667,4.082,3805.6,3805.5,0.00284212]
[1641390095886,4.082,3805.6,3805.4,0.00341054]
[1641390096087,6.91990739,3805.6,3805.4,0.00341054]
[1641390096287,6.91990739,3805.6,3805.4,1.23592605]
[1641390096490,3.51990739,3805.6,3805.4,1.23592605]
[1641390096689,0.682,3805.6,3805.4,1.23592605]
[1641390097694,0.682,3805.6,3805.4,0.00341054]
[1641390098294,5.682,3805.6,3805.5,2.97363938]
[1641390102048,9.29332174,3805.6,3805.5,2.97363938]
[1641390102348,6.3391,3805.6,3805.5,2.97363938]
[1641390102647,10.0391,3805.6,3805.5,2.97363938]
[1641390103291,6.3391,3805.6,3805.5,2.97363938]
[1641390103587,5.682,3805.6,3805.5,2.97363938]
[1641390106388,5.3,3805.6,3805.5,2.97363938]
[1641390107434,5.3,3805.6,3805.5,5.72363938]
[1641390107635,5.3,3805.6,3805.5,2.97363938]
[1641390108337,5.0,3805.6,3805.5,2.97363938]
[1641390108536,5.0,3805.6,3805.5,7.03164852]
[1641390108934,5.0,3805.6,3805.5,7.13004852]
[1641390109135,1.43214616,3805.6,3805.5,7.13564852]
[1641390109333,1.43214616,3805.6,3805.5,7.13484852]
[1641390109534,1.43214616,3805.6,3805.5,7.13324852]
[1641390109736,1.73214616,3805.6,3805.5,8.80429416]
[1641390109936,1.73214616,3805.6,3805.5,8.80349416]
[1641390110139,1.73214616,3805.6,3805.5,5.95269416]
[1641390110437,1.73214616,3805.6,3805.5,5.95109416]
[1641390110638,1.73214616,3805.6,3805.5,5.95189416]
[1641390110885,1.73214616,3805.6,3805.5,4.28084852]
[1641390111081,1.73214616,3805.6,3805.5,4.28244852]
[1641390111685,1.73214616,3805.6,3805.5,4.18164852]
[1641390112688,1.73214616,3805.6,3805.5,4.28164852]
[1641390112887,1.73214616,3805.6,3805.5,2.97363938]
[1641390114189,1.73214616,3805.6,3805.5,4.64322866]
[1641390115041,1.73214616,3805.6,3805.5,2.97363938]
[1641390123138,1.73214616,3805.6,3805.5,4.23132684]
[1641390123842,4.54599211,3805.6,3805.5,3.85768746]
[1641390124040,1.73214616,3805.6,3805.5,3.85768746]
[1641390124839,1.73214616,3805.6,3805.5,5.57363938]
[1641390129188,9.84348968,3805.6,3805.5,5.57363938]
[1641390129387,10.50058968,3805.6,3805.5,5.57363938]
[1641390129633,11.50058968,3805.6,3805.5,5.57363938]
[1641390129833,7.20058968,3805.6,3805.5,5.57363938]
[1641390132938,22.60058968,3805.6,3805.5,5.57363938]
[1641390133581,19.47124616,3805.6,3805.5,5.57363938]
[1641390133984,20.02796498,3805.6,3805.5,5.57363938]
[1641390134383,20.02796498,3805.6,3805.5,5.53183021]
[1641390135489,0.18318112,3804.8,3804.5,1.67632776]
[1641390135688,3.54160428,3804.6,3804.5,1.67632776]
[1641390135886,16.082,3804.6,3804.5,1.67632776]
[1641390136089,17.382,3804.6,3804.5,1.67632776]
[1641390136691,18.70966811,3804.6,3804.5,1.67632776]
[1641390136888,18.70966811,3804.6,3804.0,6.14]
[1641390137133,0.65727,3804.4,3804.0,6.14]
[1641390137337,0.382,3804.3,3804.1,0.01080005]
[1641390137532,0.682,3804.3,3804.1,0.01080005]
[1641390137933,3.53753921,3804.3,3804.1,0.01080005]
[1641390138133,0.682,3804.3,3804.1,0.01080005]
[1641390138933,2.77493569,3804.2,3804.1,0.01080005]
[1641390139134,3.15693569,3804.2,3804.1,0.01080005]
[1641390140140,0.382,3804.2,3803.5,0.01421059]
[1641390140338,3.15364498,3804.2,3803.5,0.01421059]
[1641390140538,0.382,3804.2,3803.5,0.01421059]
[1641390140802,0.6573,3804.1,3803.5,0.01421059]
[1641390141006,0.382,3804.0,3803.5,0.01421059]
[1641390141203,0.382,3804.0,3803.2,0.01591586]
[1641390141404,0.682,3804.0,3803.2,0.01591586]
[1641390141604,0.382,3804.0,3803.2,0.01591586]
[1641390142206,0.382,3804.0,3803.2,2.61591586]
[1641390142605,0.382,3804.0,3803.3,0.01534743]
[1641390143007,0.682,3804.0,3803.3,0.01534743]
[1641390143306,3.45599449,3804.0,3803.3,0.01534743]
[1641390143506,3.45782643,3804.0,3803.3,0.01534743]
[1641390143706,0.682,3804.0,3803.3,0.01534743]
[1641390143907,0.682,3804.0,3803.2,0.01591586]
[1641390144110,0.682,3804.0,3803.1,2.33709786]
[1641390144531,0.00397897,3803.9,3803.1,2.33709786]
[1641390144933,0.00341054,3803.8,3803.1,2.33709786]
[1641390145331,0.00284212,3803.7,3803.1,2.33709786]
[1641390145732,0.0022737,3803.6,3803.1,2.33709786]
[1641390146131,3.55556642,3804.0,3803.1,2.33709786]
[1641390146132,0.00170527,3803.5,3803.1,2.33709786]
[1641390146532,0.00113685,3803.4,3803.1,2.33709786]
[1641390146932,0.65737,3803.7,3803.1,2.33709786]
[1641390146933,0.0022737,3803.6,3803.1,2.33709786]
[1641390147331,0.00170527,3803.5,3803.1,2.33709786]
[1641390147533,0.00170527,3803.5,3802.9,2.48114987]
[1641390147734,0.00113685,3803.4,3802.9,1.25294987]
[1641390147934,0.00113685,3803.4,3803.0,0.00113685]
[1641390148133,0.0022737,3803.6,3803.0,0.00113685]
[1641390148379,0.0022737,3803.6,3803.4,6.14]
[1641390148580,0.00170527,3803.5,3803.4,6.14]
[1641390149082,0.38370527,3803.5,3803.4,6.14]
[1641390149985,0.68370527,3803.5,3803.4,6.14]
[1641390150185,0.38370527,3803.5,3802.8,0.00227369]
[1641390150586,0.00113685,3803.4,3802.8,0.00227369]
[1641390150787,0.00113685,3803.4,3802.8,2.97960837]
[1641390150989,0.00113685,3803.4,3802.8,3.63691837]
[1641390151186,0.00113685,3803.4,3802.9,2.63050237]
[1641390151587,0.00113685,3803.4,3803.1,1.25294987]
[1641390151787,0.382,3804.5,3803.2,5.3]
[1641390152030,1.43214616,3803.6,3803.4,0.65721]
[1641390152431,1.73214616,3803.6,3803.2,1.25408672]
[1641390152829,1.73214616,3803.6,3803.2,0.00113685]
[1641390153930,1.73214616,3803.6,3802.9,0.00284212]
[1641390154532,2.03214616,3803.6,3802.9,0.00284212]
[1641390155338,2.68953616,3803.6,3802.9,0.00284212]
[1641390155537,2.03214616,3803.6,3802.9,0.00284212]
[1641390155792,2.03214616,3803.6,3802.9,0.66015212]
[1641390155986,2.03214616,3803.6,3803.4,1.67632776]
[1641390156186,1.43214616,3803.6,3803.4,1.67632776]
[1641390156488,1.43214616,3803.6,3803.1,3.37792284]
[1641390156686,1.43214616,3803.6,3803.3,0.65724]
[1641390157887,1.43214616,3803.6,3803.4,0.657218]
[1641390158187,1.73214616,3803.6,3803.4,0.657218]
[1641390158387,1.73214616,3803.6,3803.4,3.63254946]
[1641390159388,1.73214616,3803.6,3803.5,2.97533146]
[1641390159839,1.73328301,3803.6,3803.5,2.97533146]
[1641390160636,1.73328301,3803.6,3803.5,4.23599308]
[1641390162040,1.73328301,3803.6,3803.5,1.26066162]
[1641390162640,1.73328301,3803.6,3803.5,4.23599308]
[1641390163482,1.73328301,3803.6,3803.4,4.23599308]
[1641390163886,1.73328301,3803.6,3803.5,1.26066162]
[1641390164083,1.73328301,3803.6,3803.5,4.23599308]
[1641390165286,1.73328301,3803.6,3803.5,7.13192607]
[1641390165487,1.73328301,3803.6,3803.5,7.99442607]
[1641390165488,1.43328301,3803.6,3803.5,7.99442607]
[1641390165687,1.43328301,3803.6,3803.5,8.10242607]
[1641390165886,1.43328301,3803.6,3803.5,11.45242607]
[1641390166085,1.43328301,3803.6,3803.5,11.45642607]
[1641390166287,1.43328301,3803.6,3803.5,6.83936445]
[1641390166586,1.43328301,3803.6,3803.5,6.84176445]
[1641390166786,9.0219,3804.7,3804.3,1.2642416]
[1641390167039,3.8553,3804.7,3804.3,1.2642416]
[1641390167242,0.00568423,3804.6,3804.3,1.2642416]
[1641390167547,0.00511581,3804.5,3804.3,1.2642416]
[1641390167942,0.18318112,3804.8,3804.0,0.65712]
[1641390167943,0.00454738,3804.4,3804.0,0.65712]
[1641390168142,0.00454738,3804.4,3804.1,1.31417]
[1641390168341,0.00397896,3804.3,3804.1,1.31417]
[1641390168742,0.00341054,3804.2,3804.1,4.28950146]
[1641390169145,0.00341054,3804.2,3804.1,1.31417]
[1641390169942,0.00341054,3804.2,3804.1,4.28950146]
[1641390170790,0.00341054,3804.2,3804.1,1.31417]
[1641390171491,0.00341054,3804.2,3804.1,4.28950146]
[1641390172691,0.00341054,3804.2,3804.1,2.97533146]
[1641390173690,0.00341054,3804.2,3804.1,5.57533146]
[1641390174739,0.00341054,3804.2,3804.1,9.06117046]
[1641390174938,0.00341054,3804.2,3804.1,9.16357046]
[1641390175140,0.00341054,3804.2,3804.1,9.16997046]
[1641390175352,0.00341054,3804.2,3804.1,9.17877046]
[1641390175541,0.00341054,3804.2,3804.1,9.17797046]
[1641390175740,0.00341054,3804.2,3804.1,13.04120756]
[1641390175940,0.00341054,3804.2,3804.1,13.03960756]
[1641390176141,0.00341054,3804.2,3804.1,10.48480756]
[1641390176342,0.00341054,3804.2,3804.1,11.08898603]
[1641390176743,0.00341054,3804.2,3804.1,11.08738603]
[1641390177043,0.00341054,3804.2,3804.1,11.08018603]
[1641390177244,0.00341054,3804.2,3804.1,10.37520756]
[1641390180188,0.00341054,3804.2,3804.1,7.54645856]
[1641390181590,0.00341054,3804.2,3804.1,5.57533146]
[1641390182033,0.63359493,3804.6,3804.1,6.23247146]
[1641390182237,0.63359493,3804.6,3804.1,5.57533146]
[1641390182434,0.00170527,3804.5,3804.1,5.57533146]
[1641390182834,0.00113684,3804.4,3804.1,5.57533146]
[1641390183836,0.00113684,3804.4,3804.2,2.97533146]
[1641390185038,0.00113684,3804.4,3804.2,4.67633164]
[1641390186094,0.30113684,3804.4,3804.2,4.67633164]
[1641390186897,0.30113684,3804.4,3804.2,4.2465178]
[1641390189538,0.30113684,3804.4,3804.2,2.97533146]
[1641390198640,18.75877088,3804.3,3804.2,1.44619002]
[1641390198837,18.75877088,3804.3,3804.1,2.6]
[1641390199036,22.55,3804.2,3804.1,2.6]
[1641390199235,22.932,3804.2,3804.1,2.6]
[1641390199437,23.232,3804.2,3804.1,2.6]
[1641390199837,24.42164031,3804.2,3804.1,2.6]
[1641390200038,2.6394227,3804.2,3804.1,2.6]
[1641390200238,1.982,3804.2,3804.1,2.6]
[1641390200882,4.77886054,3804.2,3804.1,2.6]
[1641390201787,20.17886054,3804.2,3804.1,2.6]
[1641390203487,20.19137873,3804.2,3804.1,2.6]
[1641390204292,21.06245281,3804.2,3804.1,2.6]
[1641390204938,20.19137873,3804.2,3804.1,2.6]
[1641390205338,25.19137873,3804.2,3804.1,2.6]
[1641390205539,25.19137873,3804.2,3804.1,6.245e-05]
[1641390205739,30.67812772,3804.2,3804.1,6.245e-05]
[1641390205939,15.4,3804.0,3803.6,1.27118634]
[1641390206139,4.776,3803.7,3803.6,1.27118634]
[1641390206343,24.058,3803.7,3803.6,1.27118634]
[1641390206538,22.158,3803.7,3803.6,1.27118634]
[1641390206739,0.63205901,3803.0,3802.6,1.27118634]
[1641390206941,0.382,3802.9,3802.6,1.27118634]
[1641390207139,0.382,3802.9,3802.7,0.00852636]
[1641390208286,0.382,3802.9,3802.6,1.70100018]
[1641390208490,0.382,3802.9,3802.7,1.70100018]
[1641390208895,0.382,3802.9,3802.8,0.00795793]
[1641390209492,0.682,3802.9,3802.8,0.00795793]
[1641390209692,0.682,3802.9,3802.0,0.01250532]
[1641390210796,0.682,3802.9,3802.2,1.26857834]
[1641390211196,0.682,3802.9,3802.3,0.01080005]
[1641390211398,0.982,3802.9,3802.3,0.01080005]
[1641390211695,0.682,3802.9,3802.3,0.01080005]
[1641390211894,0.982,3802.9,3802.3,0.01080005]
[1641390212142,5.682,3802.9,3802.1,0.0119369]
[1641390212345,5.982,3802.9,3802.1,0.0119369]
[1641390212743,5.982,3802.9,3802.2,1.26857834]
[1641390213143,5.982,3802.9,3802.3,0.01080005]
[1641390214749,5.6,3802.9,3802.3,0.01080005]
[1641390215550,5.6,3802.9,3802.3,1.74249076]
[1641390215788,5.3,3802.9,3802.3,3.84697891]
[1641390215985,5.3,3802.9,3802.4,0.01023163]
[1641390216185,5.3,3802.9,3802.5,0.65731]
[1641390216386,5.3,3802.9,3802.6,2.85654096]
[1641390216588,5.3,3802.9,3802.6,2.86563574]
[1641390216786,5.3,3802.9,3802.7,1.29155597]
[1641390217187,5.3,3802.9,3802.8,2.73983059]
[1641390217992,1.73009997,3802.9,3802.8,2.73983059]
[1641390218192,1.73009997,3802.9,3802.8,3.39711059]
[1641390218392,1.73009997,3802.9,3802.8,0.00795793]
[1641390218793,1.73009997,3802.9,3802.8,2.92606888]
[1641390219196,2.03009997,3802.9,3802.8,2.92606888]
[1641390219639,2.03009997,3802.9,3802.8,5.61799843]
[1641390221037,2.03009997,3802.9,3802.8,2.92606888]
[1641390222638,2.33009997,3802.9,3802.8,2.92606888]
[1641390223286,2.03009997,3802.9,3802.8,2.92606888]
[1641390225697,2.33009997,3802.9,3802.8,2.92606888]
[1641390226497,2.89534511,3802.9,3802.8,2.92606888]
[1641390227633,3.27734511,3802.9,3802.8,2.92606888]
[1641390228235,3.27734511,3802.9,3802.8,0.00795793]
[1641390228637,0.65752,3802.8,3802.1,0.0119369]
[1641390228837,1.03951,3802.7,3802.0,0.01250532]
[1641390229038,1.33951,3802.7,3802.0,0.01250532]
[1641390229639,1.33953,3802.7,3802.0,0.01250532]
[1641390229840,0.71253357,3802.6,3802.1,2.90870679]
[1641390230039,1.39453357,3802.6,3802.1,2.90870679]
[1641390230240,1.39453357,3802.6,3802.2,0.01136847]
[1641390230640,2.05206357,3802.6,3802.2,0.01136847]
[1641390230901,2.05206357,3802.6,3802.1,0.0119369]
[1641390231100,2.05206357,3802.6,3802.3,2.90870679]
[1641390231501,2.05206357,3802.6,3802.4,0.01023163]
[1641390231901,2.05206357,3802.6,3802.3,0.01080005]
[1641390232301,0.6575723,3802.5,3802.3,0.01080005]
[1641390232504,0.982,3802.4,3802.3,1.70100018]
[1641390233304,0.982,3802.4,3802.1,1.70100018]
[1641390233504,0.9576,3802.3,3802.1,1.70100018]
[1641390233704,0.382,3802.2,3802.1,1.70100018]
[1641390233905,0.682,3802.2,3802.1,1.70100018]
[1641390234104,0.682,3802.2,3802.1,1.70213703]
[1641390237349,1.33963,3802.2,3802.1,1.70213703]
[1641390238684,0.682,3802.2,3802.1,1.70213703]
[1641390241493,0.682,3802.2,3802.1,1.2861476]
[1641390241890,0.682,3802.2,3802.1,0.00113685]
[1641390242139,2.41209997,3802.2,3802.1,0.00113685]
[1641390242340,0.62923882,3802.0,3801.9,1.70327387]
[1641390242545,1.31123882,3802.0,3801.9,1.70100018]
[1641390242939,1.56123882,3802.0,3801.9,1.70100018]
[1641390245785,1.56123882,3802.0,3801.7,1.70100018]
[1641390245984,2.21890882,3802.0,3801.7,1.70100018]
[1641390246190,1.3153342,3801.9,3801.8,0.00284212]
[1641390246389,1.6973342,3801.9,3801.8,0.00284212]